Cogmind - Beta 13 @@@ ROGUE MODE // 2024.06.24 @ 12:14:12 Player: McFluffinkins Result: Destroyed by S-10 Pest with Light Assault Rifle Performance ------------- Evolutions (0) 0 Regions Visited (2) 400 Robots Destroyed (20) 100 Value Destroyed (494) 494 Prototype IDs (0) 0 Alien Tech Used (0) 0 Bonus (0) 0 TOTAL SCORE: 994 Bonus ------- None Cogmind --------- Core Integrity 0/250 Matter 269/300 Energy 250/250 System Corruption 5% Temperature Warm (117) Movement Core (800) Ox15 Location -10/Subcaves Parts ------- > --- POWER (1) -------- Ion Engine > --- PROPULSION (2) --- (None) > --- UTILITY (2) ------ High-capacity Storage Unit > --- WEAPON (2) ------- Particle Gun > --- INVENTORY (20) --- Ion Engine Ion Engine Light Treads Light Treads Wheel Hover Unit Hover Unit Large Storage Unit Large Battery (200) Structural Scanner Visual Processing Unit Sensor Array Signal Interpreter Signal Interpreter Core Shielding Light Armor Plating EM Pulse Gun Light Assault Rifle Barrage Gun Peak State ------------ > --- POWER ------------ Ion Engine > --- PROPULSION ------- Wheel Compact Wheel > --- UTILITY ---------- High-capacity Storage Unit Light Armor Plating > --- WEAPON ----------- Particle Gun Barrage Gun > --- INVENTORY -------- Ion Engine Ion Engine Light Treads Light Treads Wheel Hover Unit Hover Unit Large Storage Unit Large Battery Structural Scanner Visual Processing Unit Sensor Array Signal Interpreter Signal Interpreter Core Shielding Light Armor Plating EM Pulse Gun Light Assault Rifle Light Assault Rifle Grenade Launcher [Rating: 12] Favorites ----------- Power Ion Engine Engine Ion Engine Propulsion Compact Wheel Treads Light Treads Leg Aluminum Leg Wheel Compact Wheel Utility High-capacity Storage Unit Storage High-capacity Storage Unit Processor Signal Interpreter Protection Light Armor Plating Weapon Light Assault Rifle Energy Gun Particle Gun Ballistic Gun Light Assault Rifle Launcher Grenade Launcher Build | -11 -10 -10 ------- Run | Yrd Mat Sub Slots Evolved . | . . . Power . | . . . Propulsion . | . . . Utility . | . . . Weapon . | . . . Parts Attached 25 | 7 16 2 Power 2 | 1 1 . Engine 2 | 1 1 . Core . | . . . Reactor . | . . . Propulsion 9 | 2 7 . Treads 2 | . 2 . Leg 1 | . 1 . Wheel 6 | 2 4 . Hover . | . . . Flight . | . . . Utility 4 | 1 3 . Device . | . . . Storage 2 | 1 1 . Processor 1 | . 1 . Hackware . | . . . Protection 1 | . 1 . Artifact . | . . . Weapon 10 | 3 5 2 Energy Gun 4 | 1 3 . Energy Cannon . | . . . Ballistic Gun 4 | 2 1 1 Ballistic Cannon . | . . . Launcher 2 | . 1 1 Special Weapon . | . . . Impact Weapon . | . . . Slashing Weapon . | . . . Piercing Weapon . | . . . Special Melee Weapon . | . . . Unidentified Prototypes . | . . . Parts Lost 9 | . 5 4 Power 1 | . 1 . Propulsion 4 | . 2 2 Utility 1 | . . 1 Weapon 3 | . 2 1 Highest Loss Streak 5 | . 5 4 To Critical Strikes . | . . . Average Slot Usage (%) 90 | . 90 93 Engine 9 | . 9 14 Treads 2 | . 2 . Wheel 25 | . 25 26 Storage 14 | . 14 14 Processor 1 | . 1 . Protection 8 | . 8 10 Energy Gun 12 | . 12 14 Ballistic Gun 15 | . 15 12 Naked Turns . | . . . Heaviest Build 54 | 14 52 54 Greatest Support 40 | 20 40 26 Greatest Overweight (x) 4 | . 4 2 Average Overweight (x) 1 | . 1 1 Largest Inventory Capacity 20 | 8 20 20 Average Capacity 19 | 7 19 20 Most Carried 20 | 4 19 20 Average Carried 11 | 2 11 19 Final Capacity 20 | 8 20 20 Final Carried 19 | 4 19 19 Class Distribution -------------------- 100% | Mutant Dominant Class ---------------- Mutant | -10/Materials Mutant | -10/Subcaves Resources | -11 -10 -10 ----------- Run | Yrd Mat Sub Matter Collected 561 | 197 354 10 Remotely . | . . . Salvage Created 607 | . 565 42 Parts 56 | . 51 5 Haulers Intercepted . | . . . Recyclers Shooed 1 | . 1 . Parts Field Recycled . | . . . Retrieved Matter . | . . . Parts Self-Destructed . | . . . Prevented . | . . . Kills | -11 -10 -10 ------- Run | Yrd Mat Sub Combat Hostiles Destroyed 13 | . 12 1 Guns 12 | . 12 . AOE 1 | . . 1 Classes Destroyed 8 | . 7 1 Builder 1 | . 1 . Tunneler 1 | . 1 . Recycler 1 | . 1 . Operator 1 | . 1 . Watcher 3 | . 3 . Swarmer 3 | . 3 . Grunt 9 | . 9 . Subdweller 1 | . . 1 Best Kill Streak 5 | . 5 1 Combat Bots Only 3 | . 3 1 Max Kills in Single Turn 2 | . 2 1 Gunslinging . | . . . Exploded 1 | . . 1 Melee . | . . . Uniques/NPCs Destroyed . | . . . Combat | -11 -10 -10 -------- Run | Yrd Mat Sub Hostile Shots Fired 127 | . 90 37 Missed 31 | . 19 12 Damage Taken 1221 | . 862 359 Core 255 | . 152 103 Absorbed by Shields . | . . . Core Remaining (%) 100 | 100 . . Volleys Fired 63 | . 56 7 Largest 2 | . 2 2 Hottest 95 | . 85 95 Shots Fired 119 | . 107 12 Gun 117 | . 106 11 Cannon . | . . . Launcher 2 | . 1 1 Special . | . . . Kinetic 71 | . 65 6 Thermal 46 | . 41 5 Explosive 2 | . 1 1 Electromagnetic . | . . . Robot Hit Streak 10 | . 10 3 Robot Miss Streak 6 | . 4 6 Penetration Max . | . . . Secondary Targets 4 | . 4 . Max Gunslinging Chain 1 | . 1 . Shots Hit Robots 69 | . 64 5 Core Hits 39 | . 36 3 Critical Kills . | . . . Critical Parts Destroyed 1 | . 1 . Critical Strikes 3 | . 3 . Burn 2 | . 2 . Destroy 1 | . 1 . Melee Attacks . | . . . Impact . | . . . Slashing . | . . . Piercing . | . . . Sneak Attacks . | . . . Combat Hostiles . | . . . Follow-up Attacks . | . . . Damage Inflicted 943 | . 848 95 Guns 846 | . 781 65 Cannons . | . . . Explosions 89 | . 59 30 Melee . | . . . Ramming 8 | . 8 . Kinetic 381 | . 359 22 Thermal 465 | . 422 43 Explosive 89 | . 59 30 Electromagnetic . | . . . Impact . | . . . Slashing . | . . . Piercing . | . . . Highest Corruption 5 | . 5 5 Average Corruption 4 | . 4 5 Corruption Purged . | . . . Corruption Blocked . | . . . Effects 15 | . 13 2 Message Errors 4 | . 4 . Matter Fused 4 | . 3 1 Heat Flow Errors 3 | . 2 1 Energy Discharges 2 | . 2 . Data Loss (minor) 2 | . 2 . Overload Shots . | . . . Overflow Damage . | . . . Projectiles . | . . . Explosions . | . . . Melee . | . . . Knockbacks . | . . . Impact . | . . . Kinetic . | . . . Secondary . | . . . Self-Inflicted Damage 4 | . 4 . Shots . | . . . Rammed 1 | . 1 . Targets Rammed 1 | . 1 . Kicked . | . . . Crushed . | . . . Highest Temperature 335 | . 335 117 Average Temperature 101 | . 105 29 Received Heat Transfer 504 | . 504 . Siege Activations . | . . . Robots Corrupted . | . . . Combat Hostiles . | . . . Parts Fried . | . . . Impact Corruptions . | . . . Robots Melted . | . . . Combat Hostiles . | . . . Parts Melted 2 | . 2 . Heat Transferred 1332 | . 1221 111 Parts Sabotaged . | . . . Parts Stolen . | . . . Parts Stripped . | . . . Power Chain Reactions . | . . . Alert | -11 -10 -10 ------- Run | Yrd Mat Sub Peak Influence 200 | . 200 . Initial . | . . . Average 75 | . 79 . Maximum Alert Level 1 | . 1 . Low Security (%) 97 | 100 97 . Level 1 2 | . 2 . Level 2 . | . . . Level 3 . | . . . Level 4 . | . . . Level 5 . | . . . High Security . | . . . Max Security . | . . . Squads Dispatched 2 | . 2 . Investigation 1 | . 1 . Extermination . | . . . Reinforcement 1 | . 1 . Assault . | . . . Garrison . | . . . Intercept . | . . . Searches Triggered . | . . . Construction Impeded . | . . . Haulers Reinforced . | . . . Active Scanning Responses . | . . . Cargo Convoy Interrupts . | . . . Stealth | -11 -10 -10 --------- Run | Yrd Mat Sub Distress Signals 2 | . 2 . Communications Jammed . | . . . Distress Signals . | . . . Times Spotted 38 | . 22 16 Peak Tracking Total 7 | . 5 7 Tactical Retreats 2 | . 1 1 Traps | -11 -10 -10 ------- Run | Yrd Mat Sub Traps Triggered 4 | . 4 . Indirectly . | . . . Trap Hack Attempts . | . . . Triggered . | . . . Disarmed . | . . . Reprogrammed 1 | . 1 . Reused . | . . . Traps Extracted . | . . . Installed . | . . . Triggered . | . . . Machines | -11 -10 -10 ---------- Run | Yrd Mat Sub Machines Disabled 1 | . 1 . Max in Single Turn 1 | . 1 . Machines Repaired . | . . . Machines Dismantled . | . . . Machines Sabotaged . | . . . Overloaded Fab Kills . | . . . Hacking | -11 -10 -10 --------- Run | Yrd Mat Sub Machines Accessed 3 | . 3 . Terminals 3 | . 3 . Fabricators . | . . . Repair Stations . | . . . Recycling Units . | . . . Scanalyzers . | . . . Garrison Access . | . . . Total Hacks 10 | . 10 . Successful 5 | . 5 . Failed 5 | . 5 . Catastrophic 1 | . 1 . Database Lockouts . | . . . Manual 5 | . 5 . Terminals 10 | . 10 . Fabricators . | . . . Repair Stations . | . . . Recycling Units . | . . . Scanalyzers . | . . . Garrison Access . | . . . Terminal Hacks 5 | . 5 . Emergency Access Points 1 | . 1 . Reprogram Traps 1 | . 1 . Hauler Manifests 1 | . 1 . Registered Components 1 | . 1 . Zone Layout 1 | . 1 . Fabricator Hacks . | . . . Repair Station Hacks . | . . . Recycling Unit Hacks . | . . . Scanalyzer . | . . . Garrison Access Hacks . | . . . Unauthorized Hacks . | . . . Terminals . | . . . Fabricators . | . . . Repair Stations . | . . . Recycling Units . | . . . Scanalyzers . | . . . Garrison Access . | . . . Data Cores Recovered . | . . . Used . | . . . Hacking Detections 3 | . 3 . Full Trace Events 2 | . 2 . Feedback Events . | . . . Feedback Blocked . | . . . Robot Schematics Acquired . | . . . Robots Built . | . . . Authchips . | . . . Time . | . . . Total Robot Build Rating . | . . . Part Schematics Acquired . | . . . Parts Built . | . . . Authchips . | . . . Time . | . . . Total Part Build Rating . | . . . Parts Repaired . | . . . Time . | . . . Parts Recycled . | . . . Recycled Matter . | . . . Retrieved Matter . | . . . Retrieved Components . | . . . Parts Scanalyzed . | . . . Part Schematics Acquired . | . . . Parts Damaged . | . . . Bothacking | -11 -10 -10 ------------ Run | Yrd Mat Sub Used RIF Installer . | . . . Robots Hacked . | . . . Non-combat . | . . . Combat . | . . . Robot Hacks Applied . | . . . Relay Couplers Released . | . . . Fabnet Peak Effective % . | . . . Robots Rewired . | . . . Allies Hacked . | . . . Hacks Repelled . | . . . Allies | -11 -10 -10 -------- Run | Yrd Mat Sub Total Allies . | . . . Largest Group . | . . . Highest-Rated Group . | . . . Highest-Rated Ally . | . . . Total Orders . | . . . Ally Attacks . | . . . Total Damage . | . . . Kills . | . . . Allies Corrupted . | . . . Allies Melted . | . . . Intel | -11 -10 -10 ------- Run | Yrd Mat Sub Robot Analysis Total . | . . . Derelict Logs Recovered . | . . . Drone Launches . | . . . Drone Recoveries . | . . . Exploration | -11 -10 -10 ------------- Run | Yrd Mat Sub Turns Passed 1091 | 45 978 68 Spaces Moved 712 | 40 632 40 Core 4 | 4 . . Treads 33 | . 33 . Legs . | . . . Wheels 675 | 36 599 40 Hover . | . . . Flight . | . . . Fastest Speed 50 | 50 80 105 Average Speed 114 | 77 117 113 Slowest Speed 240 | 80 240 120 Overloaded Moves . | . . . Propulsion Burnouts . | . . . Robots Hopped . | . . . Cave-ins Triggered . | . . . Exploration Rate (%) 32 | 3 87 8 Regions Visited 2 Branch Regions 1 Pre-discovered Areas . | . . . Known Exits Taken . | . . . Unknown Exits Taken 2 | 1 1 . Scrap Searched 1 | . . 1 Spaces Dug . | . . . Terrain Destroyed 17 | . 10 7 Melee . | . . . Projectile . | . . . AOE 17 | . 10 7 Terrain Rammed . | . . . Walls Destroyed . | . . . Machines Disabled . | . . . Actions | -11 -10 -10 --------- Run | Yrd Mat Sub Total 869 | 51 767 51 Wait 35 | . 35 . Move 710 | 39 631 40 Hop . | . . . Pick Up 29 | 5 23 1 Fast Attach 7 | 5 2 . Attach 8 | 1 7 . Detach . | . . . Swap 10 | 1 7 2 Drop 6 | . 5 1 Fire 63 | . 56 7 Melee . | . . . Ram 1 | . 1 . Kick . | . . . Crush . | . . . Escape Stasis . | . . . Rewire . | . . . Trap . | . . . Miscellaneous . | . . . Route ------- -11/Scrapyard -10/Materials (discovered 5 exits: [*Mat x2] / [*Min x2] / [*Sub]) -10/Subcaves History --------- Turn | Location | Event 19 | -11/Scrapyard | Discovered new exit (range 16) 46 | -11/Scrapyard | Entered Materials 269 | -10/Materials | Lost 5 parts (1p2n2w) 316 | -10/Materials | Build established: Mutant 468 | -10/Materials | Discovered new exit (range 11) 598 | -10/Materials | Discovered new exit (range 15) 782 | -10/Materials | Discovered new exit (range 10) 785 | -10/Materials | Core integrity fell below 50% 1002 | -10/Materials | Discovered new exit (range 12) 1011 | -10/Materials | Discovered new exit (range 15) 1024 | -10/Materials | Entered Subcaves 1086 | -10/Subcaves | Core integrity fell below 20% 1092 | -10/Subcaves | Destroyed by S-10 Pest with Light Assault Rifle Last Messages --------------- 01037_ Searching scrap... 01037_ Found Barrage Gun. 01037_ Found 30 Matter. 01039_ Acquired Barrage Gun. 01042_ Acquired 10 matter. 01043_ Dropped Lgt. Assault Rifle. 01045_ 8I-79C(u) builds Twisted Machinery. 01051_ Subatomizers dissect the Lgt. Assault Rifle. 01059_ System corrupted: Matter fused (-7). 01069_ 8I-79C(u) builds Twisted Machinery. 01079_ Lgt. Armor Plating destroyed. 01082_ S-10 Pest springs to life. 01082_ 8I-79C(u) builds Twisted Machinery. 01083_ S-10 Pest springs to life. 01087_ Com. Wheel destroyed. 01090_ Wheel destroyed. 01090_ YZ-S6K(R) destroyed. 01090_ Grenade Launcher destroyed. 01091_ System corrupted: Heat flow error (+126). Map ----- +----------------------------------------------------+ | ?????????????????????????????????????????????????? | | ?????????????????????????????????????????????????? | | ?????????????????????????????????????????????????? | | ?????????????????????????????????????????????????? | | ?????????????????????????????????????????????????? | | ?????????????????????????????????????????????????? | | ?????????????????????????????????????????????????? | | ?????????????????????????????????????????????????? | | ? ???????????????????????????????????????????????? | | ? ??????????????????????????????????????????????? | | ? #######???????????????????????????????????????? | | ?? #???????????????????????????????????????? | | ??? ###?????????????????????????????????????? | | ???# ??????????????????????????????????????? | | ???# ???????????????????????????????????????? | | ???# #????##?????????????????????????????????? | | ????# #???# #?????????????????????????????????? | | ?????# " #### #?????????????####????????????????? | | ????##" " #?????????????"""#????????????????? | | #####" " #?????????????" "#????????????????? | | % # " " "#?????????????t "#????????????????? | | [ " "#??####?????? #????????????????? | | ### ##### #?????? s #????????????????? | | " #?## ## ###??? "#????????????????? | | #" "#??# """" ####s s##??????????????????? | | ##" #?# """" @ #??????????????????? | | ## """"#" #????????????????? | | ###""""""##### ### #????????????????? | | "####"" #???## #????#????????????????? | | """"##??# #????##% ???????????????????? | | ######???# ##????# % #?????????????????? | | ?????????## ##?????# #?????????????????? | | ??????????##???????# !![ ### ##?????????????????? | | ???????????????????# *% #???###??????????????????? | | ??????????????????? != ?????????????????????????? | | ??????????????????# ?????????????????????????? | | ??????????????????# #?????????????????????????? | | ?????????????????? R% ?????????????????????????? | | ?????????????????? % ?????????????????????????? | | ???????????????????### ?????????????????????????? | | ?????????????????????? ?????????????????????????? | | ?????????????????????????????????????????????????? | | ?????????????????????????????????????????????????? | | ?????????????????????????????????????????????????? | | ?????????????????????????????????????????????????? | | ?????????????????????????????????????????????????? | | ?????????????????????????????????????????????????? | | ?????????????????????????????????????????????????? | | ?????????????????????????????????????????????????? | | ?????????????????????????????????????????????????? | +----------------------------------------------------+ Best States ------------- Heat Dissipation 25 Energy Generation 10 Energy Capacity 250 Matter Stores 300 Matter Capacity 300 Sight Range 16 Terrain Scan Density 10 Armor Coverage 150 Evasion (%) 44 Recoil Reduction 2 Item Schematics ----------------- None Robot Schematics ------------------ None Fabricated ------------ Nothing Alien Tech Used ----------------- None Achievements -------------- None Challenges ------------ None Game ------ Seed FrostTitaniumNanoactuators Manual? 0 Play Time 00:15:10 Cumulative 14.5 hours Start 2024.06.24 @ 11:09:33 End 2024.06.24 @ 12:14:12 Sessions 1 Manual Loads 0 Difficulty Rogue Special Mode None Game No. 20 Rogue 20 Adventurer 0 Explorer 0 Win Type - Total 0 Types 0/0/0/0/0/0/0/0/0 Lore% 15 Gallery% 19 Achievement% 16 Wizard Run 0 Options --------- Layout 1 ASCII 0 Keyboard 0 Movement Mouse Keybinds 0 Fullscreen 2 Font 32/Terminus Map View 50x35 Zoom Use 0% Tactical HUD 1 Map Filters NONE Filters NONE Steam 1 RUN: bf498962-acd6-4227-9b86-d6ecddf603cc